fUSD/lending_fUSD_20240104
["ID","MTS","AMOUNT","RATE_DAILY","PERIOD"]
[310139911,1704382275920,-500.0,0.00033698,2]
[310139912,1704382275931,-555.52,0.00033698,2]
[310139913,1704382275940,-500.0,0.00033698,2]
[310139914,1704382275949,-500.0,0.00033698,2]
[310139915,1704382275959,-500.0,0.00033698,2]
[310139916,1704382275968,-570.54,0.00033698,2]
[310139917,1704382275977,-3232.69,0.00033698,2]
[310139918,1704382275986,-2189.05,0.00033698,2]
[310139919,1704382275996,-759.52,0.00033698,2]
[310139920,1704382276005,-500.0,0.00033698,2]
[310139921,1704382276014,-500.0,0.00033698,2]
[310139922,1704382276024,-817.65,0.00033698,2]
[310139923,1704382276034,-500.0,0.00033698,2]
[310139924,1704382276043,-500.0,0.00033698,2]
[310139925,1704382276053,-1722.33,0.00033698,2]
[310139926,1704382276063,-2425.11,0.00033698,2]
[310139927,1704382276073,-828.07,0.00033698,2]
[310139928,1704382276082,-1223.54,0.00033698,2]
[310139929,1704382276091,-1456.98,0.00033698,2]
[310139930,1704382276101,-500.0,0.00033698,2]
[310139931,1704382276110,-1177.67,0.00033698,2]
[310139932,1704382276119,-583.33,0.00033698,2]
[310139933,1704382276128,-500.0,0.00033698,2]
[310139934,1704382276137,-875.56,0.00033698,2]
[310139935,1704382276146,-500.0,0.00033698,2]
[310139936,1704382276156,-500.0,0.00033698,2]
[310139937,1704382276165,-500.0,0.00033698,2]
[310139938,1704382276174,-500.0,0.00033698,2]
[310139939,1704382276186,-500.0,0.00033698,2]
[310139940,1704382276198,-2227.49,0.00033698,2]
[310139941,1704382276207,-500.0,0.00033698,2]
[310139942,1704382276217,-500.0,0.00033698,2]
[310139943,1704382276226,-1518.35,0.00033698,2]
[310139944,1704382276235,-500.0,0.00033698,2]
[310139945,1704382276245,-750.06,0.00033698,2]
[310139946,1704382276254,-820.93,0.00033698,2]
[310139947,1704382276264,-500.0,0.00033698,2]
[310139948,1704382276273,-500.0,0.00033698,2]
[310139949,1704382276283,-500.0,0.00033698,2]
[310139950,1704382276293,-500.0,0.00033698,2]
[310139951,1704382276305,-500.0,0.00033698,2]
[310139952,1704382276315,-631.12562459,0.00033698,2]
[310139953,1704382276325,-500.0,0.00033698,2]
[310139954,1704382276336,-500.0,0.00033698,2]
[310139955,1704382276347,-563.99,0.00033698,2]
[310139956,1704382276356,-553.89,0.00033698,2]
[310139957,1704382276365,-1394.22,0.00033698,2]
[310139958,1704382276375,-500.0,0.00033698,2]
[310139959,1704382276386,-500.0,0.00033698,2]
[310139960,1704382276396,-1421.63,0.00033698,2]
[310139961,1704382276405,-500.0,0.00033698,2]
[310139962,1704382276415,-500.0,0.00033698,2]
[310139963,1704382276424,-2931.05,0.00033698,2]
[310139964,1704382276434,-500.0,0.00033698,2]
[310139965,1704382276445,-500.0,0.00033698,2]
[310139966,1704382276454,-1128.24,0.00033698,2]
[310139967,1704382276464,-534.18,0.00033698,2]
[310139968,1704382276473,-500.0,0.00033698,2]
[310139969,1704382276483,-500.0,0.00033698,2]
[310139970,1704382276493,-500.0,0.00033698,2]
[310139971,1704382276504,-500.0,0.00033698,2]
[310139972,1704382276514,-500.0,0.00033698,2]
[310139973,1704382276523,-990.25,0.00033698,2]
[310139974,1704382276533,-500.0,0.00033698,2]
[310139975,1704382276712,-500.0,0.00033698,2]
[310139976,1704382276722,-150.0,0.00033698,2]
[310139977,1704382276732,-1440.48,0.00033698,2]
[310139978,1704382276742,-618.51,0.00033698,2]
[310139979,1704382276752,-500.0,0.00033698,2]
[310139980,1704382276762,-500.0,0.00033698,2]
[310139981,1704382276771,-500.0,0.00033698,2]
[310139982,1704382276780,-500.0,0.00033698,2]
[310139983,1704382276790,-1720.17,0.00033698,2]
[310139984,1704382276800,-500.0,0.00033698,2]
[310139985,1704382276810,-500.0,0.00033698,2]
[310139986,1704382276819,-500.0,0.00033698,2]
[310139987,1704382276829,-1631.87,0.00033698,2]
[310139988,1704382276839,-500.0,0.00033698,2]
[310139989,1704382276849,-500.0,0.00033698,2]
[310139990,1704382276859,-500.0,0.00033698,2]
[310139991,1704382276869,-500.0,0.00033698,2]
[310139992,1704382276879,-1063.03,0.00033698,2]
[310139993,1704382276889,-500.0,0.00033698,2]
[310139994,1704382276899,-920.52,0.00033698,2]
[310139995,1704382276909,-8858.93,0.00033698,2]
[310139996,1704382276918,-321.09267849,0.00033698,2]
[310139997,1704382276930,-500.0,0.00033698,2]
[310139998,1704382276939,-647.69,0.00033698,2]
[310139999,1704382276951,-500.0,0.00033698,2]
[310140000,1704382276961,-719.66,0.00033698,2]
[310140001,1704382276970,-500.0,0.00033698,2]
[310140002,1704382276980,-1265.99,0.00033698,2]
[310140003,1704382276990,-1937.0,0.00033698,2]
[310140004,1704382277000,-500.0,0.00033698,2]
[310140005,1704382277010,-804.42,0.00033698,2]
[310140006,1704382277020,-262.82274716,0.00033698,2]
[310140007,1704382277030,-500.0,0.00033698,2]
[310140008,1704382277039,-500.0,0.00033698,2]
[310140009,1704382277049,-500.0,0.00033698,2]
[310140010,1704382277059,-598.04,0.00033698,2]
[310140011,1704382277069,-500.0,0.00033698,2]
[310140012,1704382277079,-653.36,0.00033698,2]
[310140013,1704382277088,-500.0,0.00033698,2]
[310140014,1704382277098,-500.0,0.00033698,2]
[310140015,1704382277109,-500.0,0.00033698,2]
[310140016,1704382277119,-500.0,0.00033698,2]
[310140017,1704382277128,-604.31,0.00033698,2]
[310140018,1704382277138,-1783.17,0.00033698,2]
[310140019,1704382277148,-779.23,0.00033698,2]
[310140020,1704382277158,-511.12,0.00033698,2]
[310140021,1704382277167,-500.0,0.00033698,2]
[310140022,1704382277180,-391.19649539,0.00033698,2]
[310140023,1704382277189,-553.89352796,0.00033698,2]
[310140024,1704382277198,-749.48,0.00033698,2]
[310140025,1704382277207,-1280.78,0.00033698,2]
[310140026,1704382277216,-5912.23,0.00033698,2]
[310140027,1704382277225,-500.0,0.00033698,2]
[310140028,1704382277234,-500.0,0.00033698,2]
[310140029,1704382277243,-6138.42,0.00033698,2]
[310140030,1704382277253,-500.0,0.00033698,2]
[310140031,1704382277262,-757.3,0.00033698,2]
[310140032,1704382277271,-500.0,0.00033698,2]
[310140033,1704382277280,-500.0,0.00033698,2]
[310140034,1704382277289,-784.27,0.00033698,2]
[310140035,1704382277299,-500.0,0.00033698,2]
[310140036,1704382277309,-709.85,0.00033698,2]
[310140037,1704382277319,-500.0,0.00033698,2]
[310140038,1704382277329,-865.14,0.00033698,2]
[310140039,1704382277338,-500.0,0.00033698,2]
[310140040,1704382277348,-500.0,0.00033698,2]
[310140041,1704382277359,-500.0,0.00033698,2]
[310140042,1704382277369,-836.11,0.00033698,2]
[310140043,1704382277379,-500.0,0.00033698,2]
[310140044,1704382277389,-754.71,0.00033698,2]
[310140045,1704382277399,-1180.91,0.00033698,2]
[310140046,1704382277409,-3517.98,0.00033698,2]
[310140047,1704382277418,-500.0,0.00033698,2]
[310140048,1704382277430,-500.0,0.00033698,2]
[310140049,1704382277440,-1029.25,0.00033698,2]
[310140050,1704382277450,-1144.1,0.00033698,2]
[310140051,1704382277459,-500.0,0.00033698,2]
[310140052,1704382277469,-2699.6,0.00033698,2]
[310140053,1704382277478,-500.0,0.00033698,2]
[310140054,1704382277487,-1703.14,0.00033698,2]
[310140055,1704382277498,-500.0,0.00033698,2]
[310140056,1704382277507,-734.04,0.00033698,2]
[310140057,1704382277517,-1594.68,0.00033698,2]
[310140058,1704382277527,-786.52,0.00033698,2]
[310140059,1704382277536,-1602.27,0.00033698,2]
[310140060,1704382277545,-500.0,0.00033698,2]
[310140061,1704382277555,-500.0,0.00033698,2]
[310140062,1704382277564,-500.0,0.00033698,2]
[310140063,1704382277574,-1302.09,0.00033698,2]
[310140064,1704382277584,-772.31,0.00033698,2]
[310140065,1704382277594,-805.84,0.00033698,2]
[310140066,1704382277604,-500.0,0.00033698,2]
[310140067,1704382277615,-500.0,0.00033698,2]
[310140068,1704382277625,-500.0,0.00033698,2]
[310140069,1704382277636,-1641.84,0.00033698,2]
[310140070,1704382277647,-4055.91,0.00033698,2]
[310140071,1704382277657,-500.0,0.00033698,2]
[310140072,1704382277675,-500.0,0.00033698,2]
[310140073,1704382277690,-500.0,0.00033698,2]
[310140074,1704382277701,-668.58,0.00033698,2]
[310140075,1704382277711,-3237.39,0.00033698,2]
[310140076,1704382277722,-892.93,0.00033698,2]
[310140077,1704382277733,-500.0,0.00033698,2]
[310140078,1704382277743,-2859.43,0.00033698,2]
[310140079,1704382277754,-500.0,0.00033698,2]
[310140080,1704382277765,-500.0,0.00033698,2]
[310140081,1704382277776,-500.0,0.00033698,2]
[310140082,1704382277786,-500.0,0.00033698,2]
[310140083,1704382277797,-500.0,0.00033698,2]
[310140084,1704382277808,-2106.83,0.00033698,2]
[310140085,1704382277818,-2012.37,0.00033698,2]
[310140086,1704382277828,-500.0,0.00033698,2]
[310140087,1704382277839,-582.46,0.00033698,2]
[310140088,1704382277849,-500.0,0.00033698,2]
[310140089,1704382277859,-8847.8,0.00033698,2]
[310140090,1704382277869,-797.8,0.00033698,2]
[310140091,1704382277879,-500.0,0.00033698,2]
[310140092,1704382277889,-1629.73,0.00033698,2]
[310140093,1704382277899,-500.0,0.00033698,2]
[310140094,1704382277910,-732.92,0.00033698,2]
[310140095,1704382277921,-1031.75,0.00033698,2]
[310140096,1704382277935,-185.45510005,0.00033698,2]
[310140097,1704382277945,-1632.82,0.00033698,2]
[310140098,1704382277955,-819.74,0.00033698,2]
[310140099,1704382277966,-1000.0,0.00033698,2]
[310140100,1704382277976,-500.0,0.00033698,2]
[310140101,1704382277986,-1373.53,0.00033698,2]
[310140102,1704382277996,-1158.83,0.00033698,2]
[310140103,1704382278006,-2495.12,0.00033698,2]
[310140104,1704382278015,-60560.52,0.00033698,2]
[310140105,1704382278025,-500.0,0.00033698,2]
[310140106,1704382278035,-802.36,0.00033698,2]
[310140107,1704382278044,-500.0,0.00033698,2]
[310140108,1704382278054,-500.0,0.00033698,2]
[310140109,1704382278064,-1226.79,0.00033698,2]
[310140110,1704382278075,-758.9,0.00033698,2]
[310140111,1704382278085,-11320.09,0.00033698,2]
[310140112,1704382278095,-923.61,0.00033698,2]
[310140113,1704382278105,-957.74,0.00033698,2]
[310140114,1704382278115,-2795.79,0.00033698,2]
[310140115,1704382278125,-559.57,0.00033698,2]
[310140116,1704382278136,-500.0,0.00033698,2]
[310140117,1704382278146,-500.0,0.00033698,2]
[310140118,1704382278158,-4861.36,0.00033698,2]
[310140119,1704382278167,-1289.44,0.00033698,2]
[310140120,1704382278180,-500.0,0.00033698,2]
[310140121,1704382278190,-4423.27,0.00033698,2]
[310140122,1704382278200,-951.95,0.00033698,2]
[310140123,1704382278210,-500.0,0.00033698,2]
[310140124,1704382278221,-5411.95,0.00033698,2]
[310140125,1704382278230,-500.0,0.00033698,2]
[310140126,1704382278240,-799.74,0.00033698,2]
[310140127,1704382278250,-510.36,0.00033698,2]
[310140128,1704382278260,-500.0,0.00033698,2]
[310140129,1704382278270,-566.28,0.00033698,2]
[310140130,1704382278280,-4623.25,0.00033698,2]
[310140131,1704382278291,-500.0,0.00033698,2]
[310140132,1704382278305,-500.0,0.00033698,2]
[310140133,1704382278315,-1238.7,0.00033698,2]
[310140134,1704382278325,-713.76,0.00033698,2]
[310140135,1704382278334,-769.96,0.00033698,2]
[310140136,1704382278346,-10650.37,0.00033698,2]
[310140137,1704382278356,-500.0,0.00033698,2]
[310140138,1704382278366,-500.0,0.00033698,2]
[310140139,1704382278376,-500.0,0.00033698,2]
[310140140,1704382278387,-500.0,0.00033698,2]
[310140141,1704382278397,-881.17,0.00033698,2]
[310140142,1704382278407,-463.7937043,0.00033698,2]
[310140143,1704382278416,-2025.74,0.00033698,2]
[310140144,1704382278426,-1324.9,0.00033698,2]
[310140145,1704382278437,-500.0,0.00033698,2]
[310140146,1704382278447,-500.0,0.00033698,2]
[310140147,1704382278456,-500.0,0.00033698,2]
[310140148,1704382278465,-500.0,0.00033698,2]
[310140149,1704382278475,-500.0,0.00033698,2]
[310140150,1704382278485,-500.0,0.00033698,2]
[310140151,1704382278494,-500.0,0.00033698,2]
[310140152,1704382278505,-649.02,0.00033698,2]
[310140153,1704382278515,-500.0,0.00033698,2]
[310140154,1704382278526,-2771.51,0.00033698,2]
[310140155,1704382278536,-500.0,0.00033698,2]
[310140156,1704382278547,-1824.77,0.00033698,2]
[310140157,1704382278557,-9690.93,0.00033698,2]
[310140158,1704382278568,-500.0,0.00033698,2]
[310140159,1704382278578,-1120.27,0.00033698,2]
[310140160,1704382278589,-2989.05,0.00033698,2]
[310140161,1704382278599,-500.0,0.00033698,2]
[310140162,1704382278610,-4554.37,0.00033698,2]
[310140163,1704382278620,-631.33,0.00033698,2]
[310140164,1704382278632,-1696.98,0.00033698,2]
[310140165,1704382278643,-500.0,0.00033698,2]
[310140166,1704382278653,-500.0,0.00033698,2]
[310140167,1704382278663,-4285.83,0.00033698,2]
[310140168,1704382278673,-500.0,0.00033698,2]
[310140169,1704382278690,-2319.2,0.00033698,2]
[310140170,1704382278700,-500.0,0.00033698,2]
[310140171,1704382278711,-1751.2,0.00033698,2]
[310140172,1704382278722,-642.21,0.00033698,2]
[310140173,1704382278731,-500.0,0.00033698,2]
[310140174,1704382278741,-2792.13,0.00033698,2]
[310140175,1704382278751,-1270.78,0.00033698,2]
[310140176,1704382278761,-500.0,0.00033698,2]
[310140177,1704382278771,-831.45,0.00033698,2]
[310140178,1704382278780,-500.0,0.00033698,2]
[310140179,1704382278789,-500.0,0.00033698,2]
[310140180,1704382278799,-500.0,0.00033698,2]
[310140181,1704382278808,-1407.97,0.00033698,2]
[310140182,1704382278818,-2145.12,0.00033698,2]
[310140183,1704382278828,-1149.01,0.00033698,2]
[310140184,1704382278838,-581.8,0.00033698,2]
[310140185,1704382278847,-752.61,0.00033698,2]
[310140186,1704382278857,-1969.6,0.00033698,2]
[310140187,1704382278867,-593.81,0.00033698,2]
[310140188,1704382278877,-1597.33,0.00033698,2]
[310140189,1704382278886,-7145.09,0.00033698,2]
[310140190,1704382278896,-955.93,0.00033698,2]
[310140191,1704382278906,-500.0,0.00033698,2]
[310140192,1704382278916,-3064.87,0.00033698,2]
[310140193,1704382278925,-2115.06,0.00033698,2]
[310140194,1704382278938,-570.95,0.00033698,2]
[310140195,1704382278947,-500.0,0.00033698,2]
[310140196,1704382278958,-500.0,0.00033698,2]
[310140197,1704382278967,-605.29,0.00033698,2]
[310140198,1704382278976,-1573.59,0.00033698,2]
[310140199,1704382278986,-660.75,0.00033698,2]
[310140200,1704382278995,-619.4,0.00033698,2]
[310140201,1704382279005,-854.83,0.00033698,2]
[310140202,1704382279014,-500.0,0.00033698,2]
[310140203,1704382279023,-2280.04,0.00033698,2]
[310140204,1704382279033,-500.0,0.00033698,2]
[310140205,1704382279042,-500.0,0.00033698,2]
[310140206,1704382279052,-879.03,0.00033698,2]
[310140207,1704382279062,-925.71,0.00033698,2]
[310140208,1704382279071,-2256.52,0.00033698,2]
[310140209,1704382279081,-500.0,0.00033698,2]
[310140210,1704382279090,-500.0,0.00033698,2]
[310140211,1704382279100,-500.0,0.00033698,2]
[310140212,1704382279110,-911.6,0.00033698,2]
[310140213,1704382279120,-2355.5,0.00033698,2]
[310140214,1704382279130,-500.0,0.00033698,2]
[310140215,1704382279139,-500.0,0.00033698,2]
[310140216,1704382279150,-2506.82,0.00033698,2]
[310140217,1704382279158,-500.0,0.00033698,2]
[310140218,1704382279168,-883.18,0.00033698,2]
[310140219,1704382279180,-1691.6,0.00033698,2]
[310140220,1704382279189,-2376.12,0.00033698,2]
[310140221,1704382279199,-1150.28,0.00033698,2]
[310140222,1704382279208,-500.0,0.00033698,2]
[310140223,1704382279218,-3241.26,0.00033698,2]
[310140224,1704382279228,-1467.13,0.00033698,2]
[310140225,1704382279238,-630.43,0.00033698,2]
[310140226,1704382279247,-500.0,0.00033698,2]
[310140227,1704382279257,-1767.24,0.00033698,2]
[310140228,1704382279267,-607.5,0.00033698,2]
[310140229,1704382279277,-892.51,0.00033698,2]
[310140230,1704382279286,-887.9,0.00033698,2]
[310140231,1704382279295,-564.23,0.00033698,2]
[310140232,1704382279305,-637.81,0.00033698,2]
[310140233,1704382279315,-4440.92,0.00033698,2]
[310140234,1704382279325,-500.0,0.00033698,2]
[310140235,1704382279335,-500.0,0.00033698,2]
[310140236,1704382279344,-500.0,0.00033698,2]
[310140237,1704382279354,-993.64,0.00033698,2]
[310140238,1704382279365,-1531.57,0.00033698,2]
[310140239,1704382279374,-500.0,0.00033698,2]
[310140240,1704382279384,-920.1,0.00033698,2]
[310140241,1704382279394,-500.0,0.00033698,2]
[310140242,1704382279403,-968.57,0.00033698,2]
[310140243,1704382279599,-1251.27,0.00033698,2]
[310140244,1704382279611,-5295.62,0.00033698,2]
[310140245,1704382279621,-500.0,0.00033698,2]
[310140246,1704382279631,-1742.24,0.00033698,2]
[310140247,1704382279644,-2780.74,0.00033698,2]
[310140248,1704382279654,-516.04,0.00033698,2]
[310140249,1704382279664,-500.0,0.00033698,2]
[310140250,1704382279675,-2167.09,0.00033698,2]
[310140251,1704382279687,-976.16,0.00033698,2]
[310140252,1704382279697,-853.19,0.00033698,2]
[310140253,1704382279707,-1705.51,0.00033698,2]
[310140254,1704382279717,-2143.03,0.00033698,2]
[310140255,1704382279727,-769.13,0.00033698,2]
[310140256,1704382279736,-548.03,0.00033698,2]
[310140257,1704382279746,-1295.8,0.00033698,2]
[310140258,1704382279755,-500.0,0.00033698,2]
[310140259,1704382279765,-500.0,0.00033698,2]
[310140260,1704382279774,-2940.4,0.00033698,2]
[310140261,1704382279784,-703.55,0.00033698,2]
[310140262,1704382279794,-500.0,0.00033698,2]
[310140263,1704382279804,-1231.36,0.00033698,2]
[310140264,1704382279814,-2740.33,0.00033698,2]
[310140265,1704382279824,-500.0,0.00033698,2]
[310140266,1704382279833,-1044.81,0.00033698,2]
[310140267,1704382279843,-647.47,0.00033698,2]
[310140268,1704382279852,-710.61,0.00033698,2]
[310140269,1704382279862,-500.0,0.00033698,2]
[310140270,1704382279872,-500.0,0.00033698,2]
[310140271,1704382279881,-1181.34,0.00033698,2]
[310140272,1704382279891,-1762.56,0.00033698,2]
[310140273,1704382279900,-584.35432832,0.00033698,2]
[310140274,1704382279910,-500.0,0.00033698,2]
[310140275,1704382279919,-3086.01,0.00033698,2]
[310140276,1704382279931,-500.0,0.00033698,2]
[310140277,1704382279941,-678.31,0.00033698,2]
[310140278,1704382279951,-646.85,0.00033698,2]
[310140279,1704382279961,-500.0,0.00033698,2]
[310140280,1704382279971,-500.0,0.00033698,2]
[310140281,1704382279981,-692.13,0.00033698,2]
[310140282,1704382279991,-2873.65,0.00033698,2]
[310140283,1704382280000,-500.0,0.00033698,2]
[310140284,1704382280010,-3175.04,0.00033698,2]
[310140285,1704382280019,-835.84,0.00033698,2]
[310140286,1704382280029,-1280.95,0.00033698,2]
[310140287,1704382280039,-500.0,0.00033698,2]
[310140288,1704382280049,-500.0,0.00033698,2]
[310140289,1704382280058,-1197.62,0.00033698,2]
[310140290,1704382280068,-1125.64,0.00033698,2]
[310140291,1704382280077,-756.46,0.00033698,2]
[310140292,1704382280087,-1454.25,0.00033698,2]
[310140293,1704382280097,-620.9,0.00033698,2]
[310140294,1704382280106,-500.0,0.00033698,2]
[310140295,1704382280116,-500.0,0.00033698,2]
[310140296,1704382280126,-3069.04,0.00033698,2]
[310140297,1704382280136,-500.0,0.00033698,2]
[310140298,1704382280146,-500.0,0.00033698,2]
[310140299,1704382280156,-500.0,0.00033698,2]
[310140300,1704382280165,-736.99,0.00033698,2]
[310140301,1704382280175,-500.0,0.00033698,2]
[310140302,1704382280186,-4076.97,0.00033698,2]
[310140303,1704382280196,-1968.37,0.00033698,2]
[310140304,1704382280205,-349.32,0.00033698,2]
[310140305,1704382280216,-887.26,0.00033698,2]
[310140306,1704382280226,-500.0,0.00033698,2]
[310140307,1704382280235,-4220.15,0.00033698,2]
[310140308,1704382280245,-207.0,0.0003379,2]
[310140309,1704382280255,-157.59,0.00033835,2]
[310140310,1704382280265,-300.0,0.00033856,2]
[310140311,1704382280274,-293.32,0.00033856,2]
[310140312,1704382280284,-293.32,0.00033856,2]
[310140313,1704382280293,-293.32,0.00033856,2]
[310140314,1704382280307,-372.31,0.00033856,2]
[310140315,1704382280316,-153.84,0.00033896,2]
[310140316,1704382280325,-637.132288,0.000339,2]
[310140317,1704382280334,-500.0,0.000339,2]
[310140318,1704382280346,-261.71,0.00033933,2]
[310140319,1704382280355,-881.7959967,0.00033967,2]
[310140320,1704382280364,-6586.9271791,0.00033967,2]
[310140321,1704382280374,-15844.7507546,0.00033967,2]
[310140322,1704382280386,-500.5941807,0.00033967,2]
[310140323,1704382280396,-237380.3517987,0.00033967,2]
[310140324,1704382280406,-553.7,0.00033968,2]
[310140325,1704382280416,-240.99235907,0.00033969,2]
[310140326,1704382280426,-603.71060729,0.0003397,2]
[310140327,1704382280439,-2066.98418589,0.00033971,2]
[310140328,1704382280449,-553.7,0.00033971,2]
[310140329,1704382280459,-553.7,0.00033971,2]
[310140330,1704382280469,-553.7,0.00033971,2]
[310140331,1704382280483,-553.7,0.00033971,2]
[310140332,1704382280493,-553.85253618,0.00033971,2]
[310140333,1704382280503,-540.49838873,0.00033972,2]
[310140334,1704382280514,-500.0,0.00033972,2]
[310140335,1704382280523,-500.0,0.00033972,2]
[310140336,1704382280534,-500.0,0.00033972,2]
[310140337,1704382280545,-500.0,0.00033972,2]
[310140338,1704382280555,-500.0,0.00033972,2]
[310140339,1704382280566,-357.10936607,0.00033972,2]
[310140340,1704382280576,-500.0,0.00033972,2]
[310140341,1704382280586,-500.0,0.00033972,2]
[310140342,1704382280596,-500.0,0.00033972,2]
[310140343,1704382280607,-366.65643616,0.00033972,2]
[310140344,1704382280619,-500.0,0.00033972,2]
[310140345,1704382280630,-500.0,0.00033972,2]
[310140346,1704382280641,-725.45,0.00033972,2]
[310140347,1704382280651,-772.81,0.00033972,2]
[310140348,1704382280662,-617.61,0.00033972,2]
[310140349,1704382280672,-812.86,0.00033972,2]
[310140350,1704382280685,-500.0,0.00033972,2]
[310140351,1704382280695,-500.0,0.00033972,2]
[310140352,1704382280705,-406.65774487,0.00033972,2]
[310140353,1704382280714,-647.04,0.00033972,2]
[310140354,1704382280724,-663.27,0.00033972,2]
[310140355,1704382280733,-986.85,0.00033972,2]
[310140356,1704382280743,-500.0,0.00033972,2]
[310140357,1704382280753,-500.0,0.00033972,2]
[310140358,1704382280763,-665.86,0.00033972,2]
[310140359,1704382280773,-773.17,0.00033972,2]
[310140360,1704382280783,-500.0,0.00033972,2]
[310140361,1704382280792,-619.33,0.00033972,2]
[310140362,1704382280802,-500.0,0.00033972,2]
[310140363,1704382280812,-598.96,0.00033972,2]
[310140364,1704382280823,-500.0,0.00033972,2]
[310140365,1704382280834,-500.0,0.00033972,2]
[310140366,1704382280844,-500.0,0.00033972,2]
[310140367,1704382280854,-500.0,0.00033972,2]
[310140368,1704382280864,-500.0,0.00033972,2]
[310140369,1704382280875,-1038.81,0.00033972,2]
[310140370,1704382280886,-500.0,0.00033972,2]
[310140371,1704382280896,-500.0,0.00033972,2]
[310140372,1704382280906,-500.0,0.00033972,2]
[310140373,1704382280916,-854.92,0.00033972,2]
[310140374,1704382280925,-1260.91,0.00033972,2]
[310140375,1704382280939,-500.0,0.00033972,2]
[310140376,1704382280949,-1003.59,0.00033972,2]
[310140377,1704382280959,-500.0,0.00033972,2]
[310140378,1704382280969,-1673.23,0.00033972,2]
[310140379,1704382280978,-864.12,0.00033972,2]
[310140380,1704382280988,-1051.55,0.00033972,2]
[310140381,1704382280998,-883.08,0.00033972,2]
[310140382,1704382281008,-500.0,0.00033972,2]
[310140383,1704382281018,-574.16,0.00033972,2]
[310140384,1704382281028,-500.0,0.00033972,2]
[310140385,1704382281038,-500.0,0.00033972,2]
[310140386,1704382281048,-746.69,0.00033972,2]
[310140387,1704382281058,-617.62,0.00033972,2]
[310140388,1704382281068,-500.0,0.00033972,2]
[310140389,1704382281078,-542.04,0.00033972,2]
[310140390,1704382281088,-500.0,0.00033972,2]
[310140391,1704382281098,-500.0,0.00033972,2]
[310140392,1704382281108,-500.0,0.00033972,2]
[310140393,1704382281118,-979.72,0.00033972,2]
[310140394,1704382281128,-623.57,0.00033972,2]
[310140395,1704382281138,-500.0,0.00033972,2]
[310140396,1704382281148,-500.0,0.00033972,2]
[310140397,1704382281158,-1373.36,0.00033972,2]
[310140398,1704382281167,-749.65,0.00033972,2]
[310140399,1704382281179,-791.37,0.00033972,2]
[310140400,1704382281188,-749.29,0.00033972,2]
[310140401,1704382281198,-1152.47,0.00033972,2]
[310140402,1704382281208,-1052.59,0.00033972,2]
[310140403,1704382281217,-610.85,0.00033972,2]
[310140404,1704382281227,-526.98215796,0.00033972,2]
[310140405,1704382281236,-615.73638045,0.00033972,2]
[310140406,1704382281246,-500.0,0.00033972,2]
[310140407,1704382281256,-500.0,0.00033972,2]
[310140408,1704382281266,-500.0,0.00033972,2]
[310140409,1704382281275,-500.0,0.00033972,2]
[310140410,1704382281285,-500.0,0.00033972,2]